fUSD/lending_fUSD_20260503
["ID","MTS","AMOUNT","RATE_DAILY","PERIOD"]
[421470006,1777738253000,-500.0,0.00032383,2]
[421470003,1777738253000,-500.0,0.00032383,2]
[421469996,1777738253000,-151.0,0.00032383,7]
[421469998,1777738253000,-500.0,0.00032383,2]
[421470000,1777738253000,-315.38769015,0.00032383,2]
[421469956,1777738253000,-500.0,0.00032383,2]
[421470004,1777738253000,-500.0,0.00032383,2]
[421469977,1777738253000,-500.0,0.00032383,2]
[421469988,1777738253000,-151.0,0.00032383,7]
[421469973,1777738253000,-693.96,0.00032383,2]
[421469957,1777738253000,-500.0,0.00032383,2]
[421469974,1777738253000,-500.0,0.00032383,2]
[421469950,1777738253000,-500.0,0.00032383,2]
[421469951,1777738253000,-500.0,0.00032383,2]
[421469954,1777738253000,-500.0,0.00032383,2]
[421469949,1777738253000,-500.0,0.00032383,2]
[421469948,1777738253000,-500.0,0.00032383,2]
[421469955,1777738253000,-500.0,0.00032383,2]
[421469953,1777738253000,-500.0,0.00032383,2]
[421469960,1777738253000,-500.0,0.00032383,2]
[421469964,1777738253000,-369.14495555,0.00032383,2]
[421469966,1777738253000,-500.0,0.00032383,2]
[421469961,1777738253000,-500.0,0.00032383,2]
[421469968,1777738253000,-500.0,0.00032383,2]
[421469962,1777738253000,-189.89084719,0.00032383,2]
[421469975,1777738253000,-901.46,0.00032383,2]
[421469970,1777738253000,-500.0,0.00032383,2]
[421469959,1777738253000,-500.0,0.00032383,2]
[421469972,1777738253000,-12694.74,0.00032383,2]
[421469976,1777738253000,-500.0,0.00032383,2]
[421469969,1777738253000,-500.0,0.00032383,2]
[421469978,1777738253000,-500.0,0.00032383,2]
[421469981,1777738253000,-500.0,0.00032383,2]
[421469963,1777738253000,-500.0,0.00032383,2]
[421469965,1777738253000,-2059.86,0.00032383,2]
[421469967,1777738253000,-500.0,0.00032383,2]
[421469958,1777738253000,-500.0,0.00032383,2]
[421469979,1777738253000,-500.0,0.00032383,2]
[421470046,1777738254000,-500.0,0.00032383,2]
[421470054,1777738254000,-500.0,0.00032383,2]
[421470055,1777738254000,-500.0,0.00032383,2]
[421470047,1777738254000,-500.0,0.00032383,2]
[421470044,1777738254000,-500.0,0.00032383,2]
[421470033,1777738254000,-2298.37,0.00032383,2]
[421470043,1777738254000,-500.0,0.00032383,2]
[421470035,1777738254000,-500.0,0.00032383,2]
[421470038,1777738254000,-500.0,0.00032383,2]
[421470039,1777738254000,-500.0,0.00032383,2]
[421470049,1777738254000,-500.0,0.00032383,2]
[421470045,1777738254000,-361.32592226,0.00032383,2]
[421470051,1777738254000,-615.65733585,0.00032383,2]
[421470064,1777738254000,-151.0,0.00032383,7]
[421470048,1777738254000,-500.0,0.00032383,2]
[421470050,1777738254000,-500.0,0.00032383,2]
[421470053,1777738254000,-500.0,0.00032383,2]
[421470056,1777738254000,-500.0,0.00032383,2]
[421470058,1777738254000,-688.56,0.00032383,2]
[421470060,1777738254000,-500.0,0.00032383,2]
[421470059,1777738254000,-500.0,0.00032383,2]
[421470057,1777738254000,-500.0,0.00032383,2]
[421470061,1777738254000,-772.17,0.00032383,2]
[421470063,1777738254000,-500.0,0.00032383,2]
[421470065,1777738254000,-500.0,0.00032383,2]
[421470066,1777738254000,-500.0,0.00032383,2]
[421470042,1777738254000,-635.05401064,0.00032383,2]
[421470052,1777738254000,-500.0,0.00032383,2]
[421470037,1777738254000,-219.61789661,0.00032383,2]
[421470008,1777738254000,-182.94694566,0.00032383,2]
[421470036,1777738254000,-643.32,0.00032383,2]
[421470007,1777738254000,-150.9736214,0.00032383,2]
[421470062,1777738254000,-500.0,0.00032383,2]
[421470018,1777738254000,-500.0,0.00032383,2]
[421470019,1777738254000,-500.0,0.00032383,2]
[421470016,1777738254000,-500.0,0.00032383,2]
[421470015,1777738254000,-500.0,0.00032383,2]
[421470017,1777738254000,-801.36,0.00032383,2]
[421470009,1777738254000,-500.0,0.00032383,2]
[421470014,1777738254000,-500.0,0.00032383,2]
[421470011,1777738254000,-500.0,0.00032383,2]
[421470012,1777738254000,-500.0,0.00032383,2]
[421470013,1777738254000,-500.0,0.00032383,2]
[421470021,1777738254000,-500.0,0.00032383,2]
[421470028,1777738254000,-428.21278882,0.00032383,2]
[421470020,1777738254000,-500.0,0.00032383,2]
[421470023,1777738254000,-500.0,0.00032383,2]
[421470022,1777738254000,-500.0,0.00032383,2]
[421470024,1777738254000,-500.0,0.00032383,2]
[421470025,1777738254000,-500.0,0.00032383,2]
[421470026,1777738254000,-517.94558997,0.00032383,2]
[421470030,1777738254000,-500.0,0.00032383,2]
[421470027,1777738254000,-391.62574544,0.00032383,2]
[421470029,1777738254000,-500.0,0.00032383,2]
[421470040,1777738254000,-830.29,0.00032383,2]
[421470034,1777738254000,-3387.89,0.00032383,2]
[421470031,1777738254000,-732.98,0.00032383,2]
[421470032,1777738254000,-500.0,0.00032383,2]
[421470041,1777738254000,-500.0,0.00032383,2]
[421470068,1777738254000,-419.47385866,0.00032383,2]
[421470010,1777738254000,-500.0,0.00032383,2]
[421470078,1777738254000,-500.0,0.00032383,2]
[421470095,1777738254000,-500.0,0.00032383,2]
[421470099,1777738254000,-500.0,0.00032383,2]
[421470096,1777738254000,-380.63307771,0.00032383,2]
[421470102,1777738254000,-500.0,0.00032383,2]
[421470107,1777738254000,-500.0,0.00032383,2]
[421470116,1777738254000,-500.0,0.00032383,2]
[421470115,1777738254000,-500.0,0.00032383,2]
[421470108,1777738254000,-764.18,0.00032383,2]
[421470106,1777738254000,-616.49,0.00032383,2]
[421470110,1777738254000,-500.0,0.00032383,2]
[421470109,1777738254000,-500.0,0.00032383,2]
[421470111,1777738254000,-500.0,0.00032383,2]
[421470113,1777738254000,-500.0,0.00032383,2]
[421470101,1777738254000,-500.0,0.00032383,2]
[421470114,1777738254000,-3171.81,0.00032383,2]
[421470119,1777738254000,-500.0,0.00032383,2]
[421470118,1777738254000,-500.0,0.00032383,2]
[421470120,1777738254000,-500.0,0.00032383,2]
[421470129,1777738254000,-500.0,0.00032383,2]
[421470121,1777738254000,-500.0,0.00032383,2]
[421470125,1777738254000,-500.0,0.00032383,2]
[421470123,1777738254000,-500.0,0.00032383,2]
[421470127,1777738254000,-627.62,0.00032383,2]
[421470128,1777738254000,-500.0,0.00032383,2]
[421470126,1777738254000,-948.77,0.00032383,2]
[421470122,1777738254000,-5151.24,0.00032383,2]
[421470124,1777738254000,-500.0,0.00032383,2]
[421470079,1777738254000,-500.0,0.00032383,2]
[421470112,1777738254000,-500.0,0.00032383,2]
[421470098,1777738254000,-500.0,0.00032383,2]
[421470117,1777738254000,-500.0,0.00032383,2]
[421470097,1777738254000,-926.86,0.00032383,2]
[421470069,1777738254000,-519.59,0.00032383,2]
[421470094,1777738254000,-245.8514421,0.00032383,2]
[421470071,1777738254000,-500.0,0.00032383,2]
[421470067,1777738254000,-500.0,0.00032383,2]
[421470075,1777738254000,-2511.16,0.00032383,2]
[421470072,1777738254000,-500.0,0.00032383,2]
[421470077,1777738254000,-699.76,0.00032383,2]
[421470076,1777738254000,-500.0,0.00032383,2]
[421470073,1777738254000,-800.53,0.00032383,2]
[421470074,1777738254000,-500.0,0.00032383,2]
[421470081,1777738254000,-500.0,0.00032383,2]
[421470085,1777738254000,-776.41,0.00032383,2]
[421470083,1777738254000,-151.0,0.00032383,7]
[421470082,1777738254000,-500.0,0.00032383,2]
[421470070,1777738254000,-500.0,0.00032383,2]
[421470080,1777738254000,-500.0,0.00032383,2]
[421470100,1777738254000,-500.0,0.00032383,2]
[421470091,1777738254000,-500.0,0.00032383,2]
[421470104,1777738254000,-500.0,0.00032383,2]
[421470103,1777738254000,-701.38,0.00032383,2]
[421470092,1777738254000,-500.0,0.00032383,2]
[421470093,1777738254000,-500.0,0.00032383,2]
[421470090,1777738254000,-638.43388935,0.00032383,2]
[421470105,1777738254000,-500.0,0.00032383,2]
[421470089,1777738254000,-613.49,0.00032383,2]
[421470087,1777738254000,-500.0,0.00032383,2]
[421470084,1777738254000,-867.68,0.00032383,2]
[421470086,1777738254000,-520.28,0.00032383,2]
[421470088,1777738254000,-500.0,0.00032383,2]
[421470175,1777738255000,-500.0,0.00032383,2]
[421470182,1777738255000,-606.18239602,0.00032437,2]
[421470162,1777738255000,-500.0,0.00032383,2]
[421470168,1777738255000,-799.47,0.00032383,2]
[421470163,1777738255000,-500.0,0.00032383,2]
[421470164,1777738255000,-500.0,0.00032383,2]
[421470161,1777738255000,-644.8,0.00032383,2]
[421470166,1777738255000,-713.23,0.00032383,2]
[421470160,1777738255000,-177.84172915,0.00032383,2]
[421470165,1777738255000,-510.0,0.00032383,2]
[421470174,1777738255000,-500.0,0.00032383,2]
[421470167,1777738255000,-527.59,0.00032383,2]
[421470173,1777738255000,-500.0,0.00032383,2]
[421470188,1777738255000,-606.18239602,0.00032437,2]
[421470178,1777738255000,-500.0,0.00032383,2]
[421470172,1777738255000,-500.0,0.00032383,2]
[421470183,1777738255000,-606.18239602,0.00032437,2]
[421470184,1777738255000,-606.18239602,0.00032437,2]
[421470179,1777738255000,-500.0,0.00032383,2]
[421470177,1777738255000,-241.70398027,0.00032383,2]
[421470180,1777738255000,-160.42639114,0.000324,10]
[421470181,1777738255000,-606.18239602,0.00032437,2]
[421470187,1777738255000,-606.18239602,0.00032437,2]
[421470190,1777738255000,-500.0,0.00032438,2]
[421470191,1777738255000,-500.0,0.00032438,2]
[421470185,1777738255000,-606.18239602,0.00032437,2]
[421470158,1777738255000,-500.0,0.00032383,2]
[421470176,1777738255000,-500.0,0.00032383,2]
[421470171,1777738255000,-500.0,0.00032383,2]
[421470131,1777738255000,-500.0,0.00032383,2]
[421470169,1777738255000,-500.0,0.00032383,2]
[421470194,1777738255000,-500.0,0.00032438,2]
[421470130,1777738255000,-705.16,0.00032383,2]
[421470132,1777738255000,-955.49,0.00032383,2]
[421470133,1777738255000,-235.93573,0.00032383,7]
[421470143,1777738255000,-852.88,0.00032383,2]
[421470136,1777738255000,-500.0,0.00032383,2]
[421470138,1777738255000,-235.93573,0.00032383,7]
[421470139,1777738255000,-1216.39,0.00032383,2]
[421470134,1777738255000,-249.82796401,0.00032383,2]
[421470135,1777738255000,-235.93573,0.00032383,7]
[421470141,1777738255000,-500.0,0.00032383,2]
[421470140,1777738255000,-235.935734,0.00032383,7]
[421470137,1777738255000,-500.0,0.00032383,2]
[421470142,1777738255000,-500.0,0.00032383,2]
[421470144,1777738255000,-578.95,0.00032383,2]
[421470145,1777738255000,-662.84,0.00032383,2]
[421470156,1777738255000,-500.0,0.00032383,2]
[421470155,1777738255000,-3075.01,0.00032383,2]
[421470157,1777738255000,-714.84,0.00032383,2]
[421470146,1777738255000,-500.0,0.00032383,2]
[421470147,1777738255000,-500.0,0.00032383,2]
[421470148,1777738255000,-500.0,0.00032383,2]
[421470154,1777738255000,-500.0,0.00032383,2]
[421470150,1777738255000,-685.03,0.00032383,2]
[421470149,1777738255000,-500.0,0.00032383,2]
[421470151,1777738255000,-500.0,0.00032383,2]
[421470153,1777738255000,-500.0,0.00032383,2]
[421470152,1777738255000,-500.0,0.00032383,2]
[421470159,1777738255000,-500.0,0.00032383,2]
[421470170,1777738255000,-712.57,0.00032383,2]
[421470195,1777738255000,-339.95153951,0.00032438,2]
[421470197,1777738255000,-500.0,0.00032438,2]
[421470196,1777738255000,-603.13357633,0.00032438,2]
[421470224,1777738255000,-572.34,0.00032438,2]
[421470228,1777738255000,-5967.71,0.00032438,2]
[421470232,1777738255000,-500.0,0.00032438,2]
[421470234,1777738255000,-500.0,0.00032438,2]
[421470225,1777738255000,-251.79749732,0.00032438,2]
[421470227,1777738255000,-500.0,0.00032438,2]
[421470230,1777738255000,-500.0,0.00032438,2]
[421470244,1777738255000,-500.0,0.00032438,2]
[421470235,1777738255000,-523.64,0.00032438,2]
[421470236,1777738255000,-775.96,0.00032438,2]
[421470245,1777738255000,-1111.98,0.00032438,2]
[421470246,1777738255000,-523.44,0.00032438,2]
[421470238,1777738255000,-500.0,0.00032438,2]
[421470233,1777738255000,-500.0,0.00032438,2]
[421470240,1777738255000,-500.0,0.00032438,2]
[421470239,1777738255000,-884.79,0.00032438,2]
[421470243,1777738255000,-519.12,0.00032438,2]
[421470242,1777738255000,-417.01113986,0.00032438,2]
[421470241,1777738255000,-500.0,0.00032438,2]
[421470247,1777738255000,-504.14,0.00032438,2]
[421470251,1777738255000,-500.0,0.00032438,2]
[421470189,1777738255000,-500.0,0.00032438,2]
[421470250,1777738255000,-500.0,0.00032438,2]
[421470252,1777738255000,-500.0,0.00032438,2]
[421470249,1777738255000,-309.39469088,0.00032438,2]
[421470253,1777738255000,-500.0,0.00032438,2]
[421470254,1777738255000,-500.0,0.00032438,2]
[421470255,1777738255000,-724.96,0.00032438,2]
[421470237,1777738255000,-500.0,0.00032438,2]
[421470231,1777738255000,-647.22,0.00032438,2]
[421470248,1777738255000,-500.0,0.00032438,2]
[421470223,1777738255000,-500.0,0.00032438,2]
[421470229,1777738255000,-500.0,0.00032438,2]
[421470186,1777738255000,-606.18239602,0.00032437,2]
[421470192,1777738255000,-736.97,0.00032438,2]
[421470193,1777738255000,-500.0,0.00032438,2]
[421470198,1777738255000,-500.0,0.00032438,2]
[421470206,1777738255000,-500.0,0.00032438,2]
[421470203,1777738255000,-620.55,0.00032438,2]
[421470207,1777738255000,-500.0,0.00032438,2]
[421470208,1777738255000,-733.4,0.00032438,2]
[421470199,1777738255000,-500.0,0.00032438,2]
[421470201,1777738255000,-500.0,0.00032438,2]
[421470205,1777738255000,-500.0,0.00032438,2]
[421470204,1777738255000,-500.0,0.00032438,2]
[421470209,1777738255000,-500.0,0.00032438,2]
[421470200,1777738255000,-610.13085633,0.00032438,2]
[421470220,1777738255000,-678.03,0.00032438,2]
[421470202,1777738255000,-626.97711596,0.00032438,2]
[421470219,1777738255000,-500.0,0.00032438,2]
[421470226,1777738255000,-950.75,0.00032438,2]
[421470213,1777738255000,-500.0,0.00032438,2]
[421470217,1777738255000,-500.0,0.00032438,2]
[421470221,1777738255000,-500.0,0.00032438,2]
[421470215,1777738255000,-740.61,0.00032438,2]
[421470211,1777738255000,-206.71996225,0.00032438,2]
[421470222,1777738255000,-547.41607502,0.00032438,2]
[421470210,1777738255000,-500.0,0.00032438,2]
[421470214,1777738255000,-500.0,0.00032438,2]
[421470218,1777738255000,-865.8,0.00032438,2]
[421470212,1777738255000,-500.0,0.00032438,2]
[421470216,1777738255000,-797.0,0.00032438,2]
[421470290,1777738256000,-500.0,0.00032438,2]
[421470289,1777738256000,-500.0,0.00032438,2]
[421470287,1777738256000,-500.0,0.00032438,2]
[421470284,1777738256000,-500.0,0.00032438,2]
[421470282,1777738256000,-500.0,0.00032438,2]
[421470286,1777738256000,-500.0,0.00032438,2]
[421470283,1777738256000,-500.0,0.00032438,2]
[421470281,1777738256000,-500.0,0.00032438,2]
[421470285,1777738256000,-500.0,0.00032438,2]
[421470288,1777738256000,-4576.64,0.00032438,2]
[421470297,1777738256000,-19976.45,0.00032438,2]
[421470294,1777738256000,-500.0,0.00032438,2]
[421470293,1777738256000,-3599.4,0.00032438,2]
[421470296,1777738256000,-1197.94,0.00032438,2]
[421470292,1777738256000,-537.0,0.00032438,2]
[421470295,1777738256000,-880.44,0.00032438,2]
[421470302,1777738256000,-500.0,0.00032438,2]
[421470301,1777738256000,-500.0,0.00032438,2]
[421470298,1777738256000,-500.0,0.00032438,2]
[421470300,1777738256000,-500.0,0.00032438,2]
[421470280,1777738256000,-2792.04,0.00032438,2]
[421470291,1777738256000,-920.07,0.00032438,2]
[421470279,1777738256000,-806.17,0.00032438,2]
[421470270,1777738256000,-500.0,0.00032438,2]
[421470278,1777738256000,-500.0,0.00032438,2]
[421470299,1777738256000,-500.0,0.00032438,2]
[421470258,1777738256000,-635.28,0.00032438,2]
[421470257,1777738256000,-812.98,0.00032438,2]
[421470256,1777738256000,-500.0,0.00032438,2]
[421470263,1777738256000,-500.0,0.00032438,2]
[421470259,1777738256000,-658.51,0.00032438,2]
[421470261,1777738256000,-666.15,0.00032438,2]
[421470262,1777738256000,-684.42,0.00032438,2]
[421470260,1777738256000,-500.0,0.00032438,2]
[421470265,1777738256000,-500.0,0.00032438,2]
[421470267,1777738256000,-500.0,0.00032438,2]
[421470266,1777738256000,-500.0,0.00032438,2]
[421470268,1777738256000,-800.92,0.00032438,2]
[421470264,1777738256000,-500.0,0.00032438,2]
[421470269,1777738256000,-753.28,0.00032438,2]
[421470272,1777738256000,-500.0,0.00032438,2]
[421470274,1777738256000,-500.0,0.00032438,2]
[421470271,1777738256000,-206.10274156,0.00032438,2]
[421470273,1777738256000,-500.0,0.00032438,2]
[421470277,1777738256000,-728.83,0.00032438,2]
[421470276,1777738256000,-36411.49,0.00032438,2]
[421470275,1777738256000,-500.0,0.00032438,2]
[421470303,1777738256000,-500.0,0.00032438,2]
[421470315,1777738256000,-500.0,0.00032438,2]
[421470304,1777738256000,-151.0,0.00032438,7]
[421470335,1777738256000,-500.0,0.00032438,2]
[421470333,1777738256000,-500.0,0.00032438,2]
[421470334,1777738256000,-500.0,0.00032438,2]
[421470330,1777738256000,-500.0,0.00032438,2]
[421470332,1777738256000,-500.0,0.00032438,2]
[421470337,1777738256000,-500.0,0.00032438,2]
[421470338,1777738256000,-500.0,0.00032438,2]
[421470336,1777738256000,-1599.33,0.00032438,2]
[421470340,1777738256000,-500.0,0.00032438,2]
[421470341,1777738256000,-512.54450555,0.00032438,2]
[421470343,1777738256000,-500.0,0.00032438,2]
[421470339,1777738256000,-500.0,0.00032438,2]
[421470342,1777738256000,-500.0,0.00032438,2]
[421470345,1777738256000,-572.17013993,0.00032438,2]
[421470344,1777738256000,-902.13,0.00032438,2]
[421470347,1777738256000,-578.54,0.00032438,2]
[421470348,1777738256000,-500.0,0.00032438,2]
[421470346,1777738256000,-603.63,0.00032438,2]
[421470351,1777738256000,-642.51516951,0.00032438,2]
[421470350,1777738256000,-500.0,0.00032438,2]
[421470352,1777738256000,-577.74122827,0.00032438,2]
[421470329,1777738256000,-901.46,0.00032438,2]
[421470327,1777738256000,-693.96,0.00032438,2]
[421470305,1777738256000,-500.0,0.00032438,2]
[421470326,1777738256000,-12694.74,0.00032438,2]
[421470331,1777738256000,-500.0,0.00032438,2]
[421470307,1777738256000,-500.0,0.00032438,2]
[421470308,1777738256000,-245.87880518,0.00032438,2]
[421470306,1777738256000,-500.0,0.00032438,2]
[421470313,1777738256000,-500.0,0.00032438,2]
[421470349,1777738256000,-367.41976243,0.00032438,2]
[421470311,1777738256000,-500.0,0.00032438,2]
[421470309,1777738256000,-500.0,0.00032438,2]
[421470310,1777738256000,-500.0,0.00032438,2]
[421470312,1777738256000,-151.0,0.00032438,7]
[421470314,1777738256000,-500.0,0.00032438,2]
[421470322,1777738256000,-500.0,0.00032438,2]
[421470318,1777738256000,-151.0,0.00032438,7]
[421470319,1777738256000,-500.0,0.00032438,2]
[421470317,1777738256000,-500.0,0.00032438,2]
[421470328,1777738256000,-500.0,0.00032438,2]
[421470321,1777738256000,-500.0,0.00032438,2]
[421470320,1777738256000,-2059.86,0.00032438,2]
[421470324,1777738256000,-500.0,0.00032438,2]
[421470325,1777738256000,-500.0,0.00032438,2]
[421470323,1777738256000,-500.0,0.00032438,2]
[421470316,1777738256000,-500.0,0.00032438,2]
[421470387,1777738257000,-500.0,0.00032438,2]
[421470384,1777738257000,-500.0,0.00032438,2]
[421470381,1777738257000,-500.0,0.00032438,2]
[421470382,1777738257000,-280.86611577,0.00032438,2]
[421470378,1777738257000,-500.0,0.00032438,2]
[421470380,1777738257000,-500.0,0.00032438,2]
[421470379,1777738257000,-830.29,0.00032438,2]
[421470390,1777738257000,-500.0,0.00032438,2]
[421470383,1777738257000,-500.0,0.00032438,2]
[421470386,1777738257000,-567.33462648,0.00032438,2]
[421470400,1777738257000,-591.45253566,0.00032438,2]
[421470391,1777738257000,-500.0,0.00032438,2]
[421470388,1777738257000,-500.0,0.00032438,2]
[421470389,1777738257000,-253.9428,0.00032438,2]
[421470393,1777738257000,-500.0,0.00032438,2]
[421470392,1777738257000,-500.0,0.00032438,2]
[421470401,1777738257000,-500.0,0.00032438,2]
[421470396,1777738257000,-500.0,0.00032438,2]
[421470395,1777738257000,-500.0,0.00032438,2]
[421470398,1777738257000,-500.0,0.00032438,2]
[421470375,1777738257000,-500.0,0.00032438,2]
[421470385,1777738257000,-500.0,0.00032438,2]
[421470377,1777738257000,-500.0,0.00032438,2]
[421470366,1777738257000,-500.0,0.00032438,2]
[421470373,1777738257000,-2298.37,0.00032438,2]
[421470403,1777738257000,-519.59,0.00032438,2]
[421470355,1777738257000,-500.0,0.00032438,2]
[421470353,1777738257000,-500.0,0.00032438,2]
[421470354,1777738257000,-500.0,0.00032438,2]
[421470359,1777738257000,-500.0,0.00032438,2]
[421470356,1777738257000,-500.0,0.00032438,2]
[421470363,1777738257000,-500.0,0.00032438,2]
[421470357,1777738257000,-517.99848951,0.00032438,2]
[421470360,1777738257000,-801.36,0.00032438,2]
[421470362,1777738257000,-500.0,0.00032438,2]
[421470358,1777738257000,-500.0,0.00032438,2]
[421470361,1777738257000,-500.0,0.00032438,2]
[421470364,1777738257000,-500.0,0.00032438,2]
[421470368,1777738257000,-500.0,0.00032438,2]
[421470365,1777738257000,-500.0,0.00032438,2]
[421470370,1777738257000,-500.0,0.00032438,2]
[421470374,1777738257000,-3387.89,0.00032438,2]
[421470367,1777738257000,-500.0,0.00032438,2]
[421470371,1777738257000,-732.98,0.00032438,2]
[421470372,1777738257000,-500.0,0.00032438,2]
[421470369,1777738257000,-500.0,0.00032438,2]
[421470376,1777738257000,-643.32,0.00032438,2]
[421470394,1777738257000,-688.56,0.00032438,2]
[421470402,1777738257000,-500.0,0.00032438,2]
[421470448,1777738257000,-500.0,0.00032438,2]
[421470428,1777738257000,-500.0,0.00032438,2]
[421470430,1777738257000,-277.46547157,0.00032438,2]
[421470429,1777738257000,-500.0,0.00032438,2]
[421470427,1777738257000,-926.86,0.00032438,2]
[421470431,1777738257000,-500.0,0.00032438,2]
[421470432,1777738257000,-500.0,0.00032438,2]
[421470435,1777738257000,-616.49,0.00032438,2]
[421470434,1777738257000,-500.0,0.00032438,2]
[421470436,1777738257000,-500.0,0.00032438,2]
[421470438,1777738257000,-764.18,0.00032438,2]
[421470443,1777738257000,-500.0,0.00032438,2]
[421470439,1777738257000,-500.0,0.00032438,2]
[421470441,1777738257000,-500.0,0.00032438,2]
[421470440,1777738257000,-500.0,0.00032438,2]
[421470442,1777738257000,-500.0,0.00032438,2]
[421470445,1777738257000,-500.0,0.00032438,2]
[421470444,1777738257000,-3171.81,0.00032438,2]
[421470447,1777738257000,-500.0,0.00032438,2]
[421470449,1777738257000,-500.0,0.00032438,2]
[421470399,1777738257000,-487.85679423,0.00032438,2]
[421470446,1777738257000,-500.0,0.00032438,2]
[421470424,1777738257000,-500.0,0.00032438,2]
[421470433,1777738257000,-701.38,0.00032438,2]
[421470437,1777738257000,-500.0,0.00032438,2]
[421470425,1777738257000,-500.0,0.00032438,2]
[421470397,1777738257000,-772.17,0.00032438,2]
[421470426,1777738257000,-500.0,0.00032438,2]
[421470409,1777738257000,-2511.16,0.00032438,2]
[421470404,1777738257000,-500.0,0.00032438,2]
[421470412,1777738257000,-500.0,0.00032438,2]
[421470408,1777738257000,-500.0,0.00032438,2]
[421470406,1777738257000,-500.0,0.00032438,2]
[421470411,1777738257000,-699.76,0.00032438,2]
[421470413,1777738257000,-500.0,0.00032438,2]
[421470410,1777738257000,-500.0,0.00032438,2]
[421470407,1777738257000,-800.53,0.00032438,2]
[421470405,1777738257000,-500.0,0.00032438,2]
[421470416,1777738257000,-500.0,0.00032438,2]
[421470420,1777738257000,-413.57106364,0.00032438,2]
[421470419,1777738257000,-520.28,0.00032438,2]
[421470418,1777738257000,-776.41,0.00032438,2]
[421470422,1777738257000,-613.49,0.00032438,2]
[421470423,1777738257000,-500.0,0.00032438,2]
[421470415,1777738257000,-500.0,0.00032438,2]
[421470421,1777738257000,-500.0,0.00032438,2]
[421470414,1777738257000,-500.0,0.00032438,2]
[421470417,1777738257000,-867.68,0.00032438,2]
[421470479,1777738258000,-500.0,0.00032438,2]
[421470474,1777738258000,-500.0,0.00032438,2]
[421470476,1777738258000,-500.0,0.00032438,2]
[421470482,1777738258000,-714.84,0.00032438,2]
[421470480,1777738258000,-500.0,0.00032438,2]
[421470475,1777738258000,-685.03,0.00032438,2]
[421470477,1777738258000,-500.0,0.00032438,2]
[421470478,1777738258000,-500.0,0.00032438,2]
[421470481,1777738258000,-3075.01,0.00032438,2]
[421470488,1777738258000,-500.0,0.00032438,2]
[421470485,1777738258000,-644.8,0.00032438,2]
[421470484,1777738258000,-500.0,0.00032438,2]
[421470486,1777738258000,-500.0,0.00032438,2]
[421470489,1777738258000,-510.0,0.00032438,2]
[421470487,1777738258000,-500.0,0.00032438,2]
[421470492,1777738258000,-799.47,0.00032438,2]
[421470490,1777738258000,-713.23,0.00032438,2]
[421470491,1777738258000,-527.59,0.00032438,2]
[421470473,1777738258000,-500.0,0.00032438,2]